bitfinex-derivatives/quotes_BTCF0:USTF0_20240925
["timestamp","ask_amount","ask_price","bid_price","bid_amount"]
[1727230983298,0.1365838,64473.0,64472.0,0.438349]
[1727230983491,0.1365838,64473.0,64472.0,0.6714031]
[1727230984189,0.10250208,64474.0,64473.0,0.077547]
[1727230984392,0.10250208,64474.0,64473.0,0.249847]
[1727230984393,0.08507184,64474.0,64473.0,0.249847]
[1727230984593,0.08507184,64474.0,64473.0,0.48219632]
[1727230984985,0.08507184,64474.0,64473.0,1.54751632]
[1727230985180,0.03936603,64474.0,64473.0,1.62506332]
[1727230985785,1e-06,64480.0,64479.0,0.15508]
[1727230985998,0.0614,64495.0,64479.0,0.5008]
[1727230986189,0.0614,64495.0,64494.0,0.5008]
[1727230986505,0.0614,64495.0,64494.0,0.578322]
[1727230986690,0.0306,64495.0,64494.0,0.578322]
[1727230987088,0.0321,64502.0,64500.0,0.077514]
[1727230987289,0.0638,64502.0,64501.0,0.3608]
[1727230987495,0.0638,64502.0,64501.0,0.59363345]
[1727230987992,0.02836151,64506.0,64505.0,0.077509]
[1727230988295,0.0638,64513.0,64507.0,0.14]
[1727230988489,0.0638,64513.0,64506.0,0.23345283]
[1727230988490,0.0638,64513.0,64512.0,0.5008]
[1727230989287,0.14069178,64513.0,64512.0,0.5008]
[1727230989692,0.14069178,64513.0,64512.0,0.5018]
[1727230989894,0.0638,64513.0,64512.0,0.5018]
[1727230990286,0.0638,64513.0,64512.0,0.8626]
[1727230990713,0.0317,64513.0,64512.0,0.5018]
[1727230990896,0.0317,64513.0,64512.0,0.5028]
[1727230991490,0.0317,64513.0,64512.0,0.3628]
[1727230992593,0.1717,64513.0,64512.0,0.3129]
[1727230992889,0.1717,64513.0,64512.0,0.263]
[1727230993101,0.1717,64513.0,64512.0,0.002]
[1727230993286,0.0317,64513.0,64512.0,0.002]
[1727230994504,0.109199,64513.0,64512.0,0.002]
[1727230995092,0.07751,64504.0,64503.0,0.0036]
[1727230995297,0.07751,64504.0,64494.0,0.5008]
[1727230995298,0.077517,64498.0,64495.0,0.0036]
[1727230995604,0.077517,64498.0,64497.0,0.23145702]
[1727230995997,0.077517,64498.0,64496.0,0.23273173]
[1727230996199,0.077517,64498.0,64494.0,0.5016]
[1727230996200,0.12160771,64497.0,64494.0,0.5016]
[1727230996398,0.12160771,64496.0,64495.0,0.23373173]
[1727230996899,0.12160771,64496.0,64495.0,0.001]
[1727230997105,0.12160771,64496.0,64494.0,0.26019796]
[1727230997306,0.12160771,64495.0,64494.0,0.25939796]
[1727230997811,0.12160771,64495.0,64494.0,0.49346143]
[1727230998199,0.08734964,64495.0,64494.0,0.49346143]
[1727230998494,0.08734964,64495.0,64494.0,0.49546143]
[1727230999803,0.08734964,64495.0,64494.0,0.50246143]
[1727231000797,0.08734964,64495.0,64494.0,0.38306347]
[1727231001028,0.16487064,64495.0,64494.0,0.38306347]
[1727231001525,0.16487064,64495.0,64494.0,0.24306347]
[1727231001708,0.16305793,64495.0,64494.0,0.24306347]
[1727231001907,0.21864827,64495.0,64494.0,0.24306347]
[1727231002101,0.21864827,64495.0,64494.0,0.14944795]
[1727231002701,0.4201426,64495.0,64494.0,0.14944795]
[1727231003209,0.3426216,64495.0,64489.0,0.04123482]
[1727231003400,0.438327,64491.0,64489.0,0.04123482]
[1727231003599,0.14112727,64490.0,64489.0,0.04123482]
[1727231003997,0.21865427,64490.0,64489.0,0.15397684]
[1727231004321,0.077527,64490.0,64489.0,0.16597684]
[1727231004808,0.077527,64490.0,64489.0,0.17297684]
[1727231006099,0.078527,64490.0,64489.0,0.17297684]
[1727231009412,0.078527,64490.0,64489.0,0.13174202]
[1727231009806,0.109327,64490.0,64489.0,0.13174202]
[1727231010917,0.16776139,64490.0,64489.0,0.019]
[1727231013007,0.52856139,64490.0,64489.0,0.019]
[1727231014208,0.52856139,64490.0,64489.0,0.065425]
[1727231016415,0.52856139,64490.0,64489.0,0.019]
[1727231017111,0.3618,64490.0,64489.0,0.096528]
[1727231017304,0.3618,64490.0,64489.0,0.14288032]
[1727231017517,0.0352,64497.0,64496.0,0.07752]
[1727231017518,0.03093622,64497.0,64496.0,0.07752]
[1727231017717,0.02733622,64497.0,64496.0,0.07752]
[1727231017920,0.0036,64504.0,64494.0,0.14]
[1727231017921,0.077516,64500.0,64497.0,0.077519]
[1727231018111,0.077517,64499.0,64497.0,0.077519]
[1727231018312,0.3608,64505.0,64497.0,0.077519]
[1727231018313,0.077517,64498.0,64497.0,0.077519]
[1727231019310,0.24640995,64498.0,64497.0,0.077519]
[1727231019518,0.24640995,64498.0,64497.0,0.081519]
[1727231019712,0.29398619,64498.0,64497.0,0.081519]
[1727231019907,0.33194296,64498.0,64497.0,0.081519]
[1727231020415,0.16305001,64498.0,64497.0,0.081519]
[1727231020611,0.16305009,64498.0,64497.0,0.081519]
[1727231020812,0.16305009,64498.0,64497.0,0.004]
[1727231021425,0.24056709,64498.0,64497.0,0.004]
[1727231022028,0.27136709,64498.0,64497.0,0.004]
[1727231023920,0.32695955,64498.0,64497.0,0.004]
[1727231024713,0.32696589,64498.0,64497.0,0.004]
[1727231026232,0.21326938,64498.0,64497.0,0.004]
[1727231029828,0.67838938,64498.0,64497.0,0.004]
[1727231030522,0.71068938,64498.0,64497.0,0.004]
[1727231030722,1.43228938,64498.0,64497.0,0.004]
[1727231030926,0.88965238,64498.0,64497.0,0.004]
[1727231031125,0.52885238,64498.0,64497.0,0.004]
[1727231034738,0.49805238,64498.0,64497.0,0.004]
[1727231039243,0.13725238,64498.0,64497.0,0.004]
[1727231040048,0.10495238,64498.0,64497.0,0.004]
[1727231040436,0.10495238,64498.0,64497.0,0.081519]
[1727231040656,0.3608,64500.0,64499.0,0.077516]
[1727231041337,0.50192296,64500.0,64499.0,0.077516]
[1727231041972,0.50192296,64500.0,64499.0,0.079516]
[1727231042146,0.57943796,64500.0,64499.0,0.002]
[1727231042348,0.71943796,64500.0,64499.0,0.00129548]
[1727231042546,0.79695296,64500.0,64499.0,0.00129548]
[1727231043054,0.79696414,64500.0,64499.0,0.00129548]
[1727231044155,0.8252697,64500.0,64499.0,0.00129548]
[1727231046745,0.6852697,64500.0,64499.0,0.00129548]
[1727231046944,0.8252697,64500.0,64499.0,0.00129548]
[1727231047652,0.82526686,64500.0,64499.0,0.00129548]
[1727231048748,0.82526686,64500.0,64499.0,0.00084267]
[1727231049348,0.68413556,64500.0,64499.0,0.00084267]
[1727231050450,0.077523,64494.0,64491.0,0.04646722]
[1727231050657,0.077523,64494.0,64483.0,0.109835]
[1727231050658,0.3608,64492.0,64485.0,0.0036]
[1727231050949,0.077537,64482.0,64478.0,0.0036]
[1727231051142,0.5008,64479.0,64477.0,0.04646722]
[1727231051343,0.077545,64475.0,64474.0,0.04646722]
[1727231052449,0.077545,64475.0,64472.0,0.04646722]
[1727231052749,0.077545,64475.0,64474.0,0.014]
[1727231054250,0.078545,64475.0,64474.0,0.028]
[1727231054987,0.218545,64475.0,64474.0,0.014]
[1727231055960,0.218545,64475.0,64474.0,0.028]
[1727231056343,0.28435974,64475.0,64474.0,0.028]
[1727231057344,0.24638627,64475.0,64474.0,0.028]
[1727231057856,0.10638627,64475.0,64474.0,0.028]
[1727231059051,0.24638627,64475.0,64474.0,0.028]
[1727231059254,0.27788627,64475.0,64474.0,0.028]
[1727231059553,0.31586383,64475.0,64474.0,0.028]
[1727231060255,0.35443127,64475.0,64474.0,0.014]
[1727231060553,0.35543127,64475.0,64474.0,0.028]
[1727231061249,0.35443127,64475.0,64474.0,0.02]
[1727231061454,0.35443127,64475.0,64474.0,0.015]
[1727231062057,1.42075127,64475.0,64474.0,0.006]
[1727231062747,0.077546,64474.0,64464.0,0.00232678]
[1727231062952,0.3608,64467.0,64464.0,0.00232678]
[1727231063143,0.3608,64467.0,64465.0,0.23280553]
[1727231066060,0.3618,64467.0,64465.0,0.24480553]
[1727231066261,0.3618,64467.0,64465.0,0.25180553]
[1727231066262,0.001,64467.0,64465.0,0.25180553]
[1727231066559,0.3618,64467.0,64465.0,0.25180553]
[1727231067459,0.439355,64467.0,64465.0,0.25180553]
[1727231067865,0.077556,64466.0,64465.0,0.25180553]
[1727231069059,0.078556,64466.0,64465.0,0.25180553]
[1727231069254,0.078556,64466.0,64465.0,0.24480553]
[1727231069455,0.078556,64466.0,64465.0,0.25180553]
[1727231070760,0.218556,64466.0,64465.0,0.019]
[1727231071364,0.30413849,64466.0,64465.0,0.019]
[1727231073457,0.45845869,64466.0,64465.0,0.019]
[1727231075465,0.30413849,64466.0,64465.0,0.019]
[1727231076357,0.45845869,64466.0,64465.0,0.019]
[1727231076957,0.30413849,64466.0,64465.0,0.019]
[1727231077358,0.16413849,64466.0,64465.0,0.019]
[1727231077563,0.31845869,64466.0,64465.0,0.019]
[1727231077968,0.16413849,64466.0,64465.0,0.019]
[1727231079061,0.52493849,64466.0,64465.0,0.019]
[1727231079254,0.439356,64466.0,64465.0,0.1297482]
[1727231079464,0.40055596,64466.0,64465.0,0.1297482]
[1727231080971,0.001,64466.0,64465.0,0.20713385]
[1727231081176,0.24730322,64470.0,64465.0,0.29201087]
[1727231081365,0.24730322,64470.0,64466.0,0.24221087]
[1727231081563,0.24730322,64470.0,64467.0,0.24221087]
[1727231081765,0.24730322,64470.0,64468.0,0.27541087]
[1727231082073,0.27564383,64470.0,64469.0,0.24221087]
[1727231082258,0.27664383,64470.0,64469.0,0.31976287]
[1727231083671,0.27664383,64470.0,64469.0,0.32276287]
[1727231084975,0.10689161,64470.0,64469.0,0.32276287]
[1727231085166,0.10689161,64470.0,64469.0,0.33076287]
[1727231085368,0.10689161,64470.0,64469.0,0.088552]
[1727231085561,0.10689161,64470.0,64469.0,0.2201709]
[1727231086175,0.10689161,64470.0,64469.0,0.33059299]
[1727231086775,0.10689161,64470.0,64469.0,0.19897409]
[1727231087579,0.10689161,64470.0,64469.0,0.088552]
[1727231089372,0.10689161,64470.0,64469.0,0.011]
[1727231091875,0.10689161,64470.0,64469.0,0.12155388]
[1727231093577,0.10689161,64470.0,64469.0,0.011]
[1727231094378,0.19689161,64470.0,64469.0,0.011]
[1727231094680,0.22869161,64470.0,64469.0,0.011]
[1727231096885,0.31427208,64470.0,64469.0,0.011]
[1727231098774,0.67507208,64470.0,64469.0,0.011]
[1727231098979,0.73069539,64470.0,64469.0,0.011]
[1727231099378,0.60889539,64470.0,64469.0,0.011]
[1727231100195,0.55327208,64470.0,64469.0,0.011]
[1727231102385,0.50566944,64470.0,64469.0,0.011]
[1727231103279,0.55326589,64470.0,64469.0,0.011]
[1727231104889,0.69132839,64470.0,64469.0,0.011]
[1727231107493,0.55326589,64470.0,64469.0,0.011]
[1727231107694,0.19246589,64470.0,64469.0,0.011]
[1727231107992,0.69144781,64470.0,64469.0,0.011]
[1727231108188,0.69144937,64470.0,64469.0,0.011]
[1727231108385,0.55326745,64470.0,64469.0,0.011]
[1727231108586,0.69141888,64470.0,64469.0,0.011]
[1727231108787,0.69139679,64470.0,64469.0,0.011]
[1727231109577,0.55326745,64470.0,64469.0,0.011]
[1727231109777,0.54524261,64470.0,64469.0,0.21450089]
[1727231109977,0.54524261,64470.0,64469.0,0.1215059]
[1727231110195,0.54524261,64470.0,64469.0,0.21450089]
[1727231110388,0.54524261,64470.0,64469.0,0.1215059]
[1727231112291,0.077557,64465.0,64464.0,0.09302714]
[1727231112496,0.4508,64465.0,64461.0,0.09302714]
[1727231112794,0.077562,64461.0,64460.0,0.09302714]
[1727231113189,0.3608,64461.0,64454.0,0.0036]
[1727231113387,0.09,64458.0,64455.0,0.13047101]
[1727231113582,0.09,64459.0,64456.0,0.13047101]
[1727231113787,0.077566,64458.0,64457.0,0.13047101]
[1727231115006,0.077566,64458.0,64457.0,0.14447101]
[1727231115298,0.36196,64461.0,64457.0,0.14447101]
[1727231115490,0.077564,64460.0,64458.0,0.13047101]
[1727231115796,0.077564,64460.0,64459.0,0.13047101]
[1727231116880,0.077571,64454.0,64452.0,0.10788691]
[1727231117083,0.167571,64454.0,64453.0,0.12999157]
[1727231117286,0.528371,64454.0,64453.0,0.12999157]
[1727231117495,0.528371,64454.0,64453.0,0.13371276]
[1727231118290,0.529371,64454.0,64453.0,0.14771276]
[1727231118692,0.530371,64454.0,64453.0,0.14771276]
[1727231119401,0.529371,64454.0,64453.0,0.14771276]
[1727231119697,0.530371,64454.0,64453.0,0.16071276]
[1727231120792,0.530371,64454.0,64453.0,0.03072119]
[1727231121198,0.530371,64454.0,64453.0,0.027]
[1727231121912,0.55830371,64454.0,64453.0,0.027]
[1727231122704,0.55830371,64454.0,64453.0,0.11991836]
[1727231123693,0.55830371,64454.0,64453.0,0.027]
[1727231124393,0.51949731,64454.0,64453.0,0.027]
[1727231129103,0.51949731,64454.0,64453.0,0.01252756]
[1727231130503,0.39073271,64454.0,64453.0,0.09009956]
[1727231130704,0.3628,64454.0,64453.0,0.09009956]
[1727231131896,0.10708931,64458.0,64453.0,1.90956085]
[1727231132103,0.10708931,64458.0,64457.0,0.09]
[1727231132405,0.10708931,64458.0,64457.0,0.32826456]
[1727231133302,0.10708931,64458.0,64457.0,0.40583156]
[1727231133603,0.10808931,64458.0,64457.0,0.44193156]
[1727231134599,0.10908931,64458.0,64457.0,0.44193156]
[1727231135502,0.10908931,64458.0,64457.0,0.45593156]
[1727231136300,0.27665531,64458.0,64457.0,0.25226456]
[1727231136495,0.27665531,64458.0,64457.0,0.12264384]
[1727231136895,0.31275531,64458.0,64457.0,0.12264384]
[1727231137105,0.31275531,64458.0,64457.0,0.20006528]
[1727231137499,0.205666,64458.0,64457.0,0.12264384]
[1727231140015,0.29125965,64458.0,64457.0,0.014]
[1727231142913,0.65205965,64458.0,64457.0,0.014]
[1727231144706,0.29125965,64458.0,64457.0,0.014]
[1727231144907,0.65205965,64458.0,64457.0,0.014]
[1727231145310,0.72962565,64458.0,64457.0,0.014]
[1727231145500,0.167573,64452.0,64451.0,0.00232723]
[1727231145723,0.61396665,64452.0,64451.0,0.00232723]
[1727231146105,0.61396944,64452.0,64451.0,0.00232723]
[1727231146911,0.528373,64452.0,64451.0,0.11125304]
[1727231147214,0.529373,64452.0,64451.0,0.2162225]
[1727231147614,0.530373,64452.0,64451.0,0.2172225]
[1727231148211,0.530373,64452.0,64451.0,0.12425304]
[1727231148510,0.530373,64452.0,64451.0,0.21721636]
[1727231148817,0.530373,64452.0,64451.0,0.12425304]
[1727231149514,0.530373,64452.0,64451.0,0.21721698]
[1727231151011,0.55769664,64452.0,64451.0,0.21713765]
[1727231155719,0.55769664,64452.0,64451.0,0.12417371]
[1727231156313,0.46769664,64452.0,64451.0,0.21713765]
[1727231156508,0.55769664,64452.0,64451.0,0.21713765]
[1727231158524,0.63526964,64452.0,64451.0,0.21481042]
[1727231158913,0.63526964,64452.0,64451.0,0.12184648]
[1727231160522,0.63526964,64452.0,64451.0,0.12191069]
[1727231161127,0.55769664,64452.0,64451.0,0.12191069]
[1727231161327,0.46769664,64452.0,64451.0,0.12191069]
[1727231161517,0.39012364,64452.0,64451.0,0.12191069]
[1727231161913,0.46769664,64452.0,64451.0,0.12191069]
[1727231162119,0.46769664,64452.0,64451.0,0.013]
[1727231162120,0.50568133,64452.0,64451.0,0.013]
[1727231162426,0.02932364,64452.0,64451.0,0.180574]
[1727231162616,0.13660126,64452.0,64451.0,0.180574]
[1727231162817,0.02932364,64452.0,64451.0,0.180574]
[1727231163222,0.002,64452.0,64451.0,0.180574]
[1727231164321,0.10927762,64452.0,64451.0,0.180574]
[1727231165017,0.10927762,64452.0,64451.0,0.090574]
[1727231165717,0.03998153,64452.0,64451.0,0.090574]
[1727231170032,0.077569,64455.0,64453.0,0.077571]
[1727231170241,0.03876527,64455.0,64454.0,0.23752159]
[1727231171128,0.03876527,64455.0,64454.0,0.31509159]
[1727231171316,0.03976527,64455.0,64454.0,0.31509159]
[1727231172527,0.04076527,64455.0,64454.0,0.32709159]
[1727231172930,0.04176527,64455.0,64454.0,0.32909159]
[1727231173633,0.04176527,64455.0,64454.0,0.25152159]
[1727231173823,0.07027894,64455.0,64454.0,0.25152159]
[1727231177030,0.07027894,64455.0,64454.0,0.014]
[1727231177031,0.10826073,64455.0,64454.0,0.014]
[1727231182131,0.10826073,64455.0,64447.0,0.0036]
[1727231182132,0.11710349,64455.0,64447.0,0.0036]
[1727231182332,0.077581,64445.0,64444.0,0.0036]
[1727231182530,0.077586,64441.0,64439.0,0.077588]
[1727231182748,0.0379819,64440.0,64439.0,0.077588]
[1727231182939,0.0379819,64440.0,64439.0,0.31060539]
[1727231183134,0.03798955,64440.0,64439.0,0.31060539]
[1727231184239,0.077586,64441.0,64439.0,0.31060539]
[1727231184436,0.001,64440.0,64439.0,0.31060539]
[1727231185242,0.002,64440.0,64439.0,0.54808135]
[1727231187950,0.079587,64440.0,64439.0,0.54790054]
[1727231188245,0.079587,64440.0,64439.0,0.47031254]
[1727231188446,0.079587,64440.0,64439.0,0.34127437]
[1727231188946,0.169587,64440.0,64439.0,0.34127437]
[1727231189346,0.169587,64440.0,64439.0,0.43418241]
[1727231189752,0.079587,64440.0,64439.0,0.51177041]
[1727231191151,0.079587,64440.0,64439.0,0.41886237]
[1727231191549,0.002,64440.0,64439.0,0.41886237]
[1727231191749,0.169587,64440.0,64439.0,0.10825698]
[1727231191947,0.169587,64440.0,64439.0,0.20114156]
[1727231192145,0.077588,64439.0,64438.0,0.00232778]
[1727231193453,0.078588,64439.0,64438.0,0.00232778]
[1727231193656,0.439388,64439.0,64438.0,0.00232778]
[1727231194042,0.440388,64439.0,64438.0,0.00232778]
[1727231194640,0.530388,64439.0,64438.0,0.00232778]
[1727231196548,0.3628,64439.0,64438.0,0.07991778]
[1727231196954,0.002,64439.0,64438.0,0.31390503]
[1727231197252,0.0036,64446.0,64445.0,0.077581]
[1727231197451,0.438373,64452.0,64445.0,0.09]
[1727231197954,0.09,64451.0,64445.0,0.09]
[1727231198544,0.09,64451.0,64444.0,0.3608]
[1727231198746,0.09,64448.0,64447.0,0.077579]
[1727231199961,0.091,64448.0,64447.0,0.078579]
[1727231200258,0.091,64448.0,64447.0,0.18595304]
[1727231200458,0.002,64448.0,64447.0,0.18595304]
[1727231204146,0.219578,64448.0,64447.0,0.18595304]
[1727231205276,0.079578,64448.0,64447.0,0.18595304]
[1727231206858,0.079578,64448.0,64447.0,0.10837404]
[1727231207060,0.219578,64448.0,64447.0,0.10861969]
[1727231207257,0.219578,64448.0,64447.0,0.18604129]
[1727231207459,0.219578,64448.0,64447.0,0.0784216]
[1727231207659,0.219578,64448.0,64447.0,0.18610232]
[1727231208157,0.219578,64448.0,64447.0,0.10868072]
[1727231210667,0.219578,64448.0,64447.0,0.2015653]
[1727231212365,0.219578,64448.0,64447.0,0.10868072]
[1727231212567,0.079578,64448.0,64447.0,0.10868072]
[1727231213361,0.002,64448.0,64447.0,0.18625972]
[1727231213759,0.002,64448.0,64447.0,0.3145561]
[1727231213961,0.002,64448.0,64447.0,0.18625972]
[1727231214366,0.002,64448.0,64447.0,0.31453402]
[1727231214562,0.002,64448.0,64447.0,0.18625972]
[1727231215074,0.04076851,64449.0,64447.0,0.18625972]
[1727231215269,0.09219378,64448.0,64447.0,0.078579]
[1727231215654,0.04076851,64449.0,64448.0,0.077578]
[1727231216264,0.04176851,64449.0,64448.0,0.077578]
[1727231216664,0.04276851,64449.0,64448.0,0.077578]
[1727231217969,0.04176851,64449.0,64448.0,0.077578]
[1727231218161,0.04276851,64449.0,64448.0,0.079578]
[1727231220287,0.13276851,64449.0,64448.0,0.079578]
[1727231222272,0.13276851,64449.0,64448.0,0.3149081]
[1727231223063,0.07843686,64449.0,64448.0,0.3149081]
[1727231223464,0.3608,64451.0,64450.0,0.077575]
[1727231223671,0.3608,64451.0,64450.0,0.18493014]
[1727231224477,0.3608,64451.0,64450.0,0.31243031]
[1727231224871,0.3618,64451.0,64450.0,0.31443031]
[1727231226276,0.3628,64451.0,64450.0,0.31443031]
[1727231227373,0.002,64451.0,64450.0,0.31443031]
[1727231229571,0.002,64451.0,64450.0,0.31400539]
[1727231230277,0.07157329,64451.0,64450.0,0.079575]
[1727231236483,0.14914729,64451.0,64450.0,0.079575]
[1727231237288,0.079574,64451.0,64450.0,0.31397225]
[1727231238491,0.002,64451.0,64450.0,0.31397225]
[1727231239076,0.002,64451.0,64450.0,0.31399536]
[1727231242883,0.3628,64451.0,64450.0,0.31399536]
[1727231243986,0.3628,64451.0,64450.0,0.3140496]
[1727231244385,0.440374,64451.0,64450.0,0.18654521]
[1727231244616,0.440374,64451.0,64450.0,0.26083782]
[1727231244889,0.440374,64451.0,64450.0,0.23658349]
[1727231245087,0.440374,64451.0,64450.0,0.10897021]
[1727231248680,0.517948,64451.0,64450.0,0.10897021]
[1727231248887,0.517948,64451.0,64450.0,0.10924258]
[1727231252190,0.55593729,64451.0,64450.0,0.002]
[1727231255486,0.19513729,64451.0,64450.0,0.002]
[1727231255687,0.55593729,64451.0,64450.0,0.002]
[1727231258599,0.55593698,64451.0,64450.0,0.002]
[1727231259692,0.19513698,64451.0,64450.0,0.002]
[1727231259898,0.64593698,64451.0,64450.0,0.002]
[1727231260398,0.607948,64451.0,64450.0,0.10914132]
[1727231261395,0.607948,64451.0,64450.0,0.10922363]
[1727231261896,0.5691365,64451.0,64450.0,0.10922363]
[1727231262699,0.2083365,64451.0,64450.0,0.10922363]
[1727231263000,0.5691365,64451.0,64450.0,0.10922363]
[1727231263501,0.5691365,64451.0,64450.0,0.10887518]
[1727231263685,0.2083365,64451.0,64450.0,0.10887518]
[1727231263891,0.5691365,64451.0,64450.0,0.10887518]
[1727231265692,0.2083365,64451.0,64450.0,0.10887518]
[1727231266099,0.5691365,64451.0,64450.0,0.10887518]
[1727231266602,0.2083365,64451.0,64450.0,0.10887518]
[1727231266802,0.5691365,64451.0,64450.0,0.10887518]
[1727231267604,0.5691365,64451.0,64450.0,0.002]
[1727231271403,0.2083365,64451.0,64450.0,0.002]
[1727231271604,0.5691365,64451.0,64450.0,0.002]
[1727231273305,0.2083365,64451.0,64450.0,0.002]
[1727231273700,0.5691365,64451.0,64450.0,0.002]
[1727231273900,0.2083365,64451.0,64450.0,0.002]
[1727231274107,0.5691365,64451.0,64450.0,0.002]
[1727231274910,0.5691365,64451.0,64450.0,0.10899699]
[1727231276212,0.4791365,64451.0,64450.0,0.10899699]
[1727231276408,0.4915625,64451.0,64450.0,0.10899699]
[1727231276714,0.5691365,64451.0,64450.0,0.10899699]
[1727231277111,0.15517,64442.0,64441.0,0.11224182]
[1727231277312,0.15518,64438.0,64437.0,0.12416209]
[1727231277641,2.10598,64438.0,64437.0,0.12416209]
[1727231279114,2.10698,64438.0,64437.0,0.12416209]
[1727231279912,0.077591,64437.0,64436.0,0.04647459]
[1727231280212,0.167591,64437.0,64436.0,0.04647459]
[1727231280918,0.077594,64434.0,64433.0,0.06196612]
[1727231281216,0.528394,64434.0,64433.0,0.06196612]
[1727231281413,0.077596,64433.0,64432.0,0.06196612]
[1727231281611,0.09,64433.0,64428.0,0.07745765]
[1727231281808,0.36196,64434.0,64428.0,0.07745765]
[1727231281809,0.09,64429.0,64428.0,0.07745765]
[1727231282210,0.09,64429.0,64427.0,0.07745765]
[1727231282405,0.3608,64428.0,64427.0,0.07745765]
[1727231282607,0.3608,64428.0,64425.0,0.0381]
[1727231283124,0.3588,64428.0,64425.0,0.0381]
[1727231284811,0.3598,64428.0,64425.0,0.0381]
[1727231285216,0.3608,64428.0,64425.0,0.0381]
[1727231285721,0.3608,64428.0,64427.0,0.077603]
[1727231286750,0.002,64428.0,64427.0,0.077603]
[1727231286923,0.001,64428.0,64427.0,0.077603]
[1727231287432,0.002,64428.0,64427.0,0.077603]
[1727231289523,0.4508,64434.0,64433.0,0.077596]
[1727231289729,0.47890517,64434.0,64433.0,0.077596]
[1727231291330,0.02810517,64434.0,64433.0,0.077596]
[1727231291539,0.09,64440.0,64439.0,0.077588]
[1727231292023,0.167586,64441.0,64439.0,0.077588]
[1727231292219,0.167586,64441.0,64439.0,0.13945964]
[1727231292424,0.167586,64441.0,64439.0,0.077588]
[1727231292621,0.3608,64442.0,64441.0,0.077586]
[1727231293935,0.39001976,64442.0,64441.0,0.079586]
[1727231294328,0.39101976,64442.0,64441.0,0.079586]
[1727231296933,0.48101976,64442.0,64441.0,0.079586]
[1727231303442,0.48101976,64442.0,64441.0,0.15692555]
[1727231304542,0.48101976,64442.0,64441.0,0.079586]
[1727231304745,0.57359018,64442.0,64441.0,0.079586]
[1727231306842,0.48359018,64442.0,64441.0,0.079586]
[1727231307031,0.48320087,64442.0,64441.0,0.079586]
[1727231307939,0.39101976,64442.0,64441.0,0.079586]
[1727231308939,0.42417291,64442.0,64441.0,0.079586]
[1727231309148,0.39101976,64442.0,64441.0,0.079586]
[1727231310246,0.50188161,64442.0,64441.0,0.079586]
[1727231312768,0.50188161,64442.0,64441.0,0.18496051]
[1727231312769,0.42978962,64442.0,64441.0,0.18496051]
[1727231312944,0.42978962,64442.0,64441.0,0.18492247]
[1727231313651,0.42978962,64442.0,64441.0,0.26238987]
[1727231313945,0.42978962,64442.0,64441.0,0.18492247]
[1727231317236,0.42978962,64442.0,64441.0,0.10733647]
[1727231317441,0.42978962,64442.0,64432.0,0.11188912]
[1727231317442,0.35220462,64442.0,64435.0,0.07754146]
[1727231317637,0.3608,64436.0,64431.0,0.0036]
[1727231317938,0.3608,64436.0,64425.0,0.0078]
[1727231317939,0.4508,64432.0,64425.0,0.0036]
[1727231318143,0.077608,64423.0,64422.0,0.0036]
[1727231318458,0.07761,64421.0,64420.0,0.09294918]
[1727231318644,0.077611,64420.0,64419.0,0.09294918]
[1727231318848,0.077615,64417.0,64416.0,0.09294918]
[1727231319145,0.167615,64417.0,64414.0,0.00232842]
[1727231319340,0.09,64415.0,64414.0,0.00232842]
[1727231321248,0.091,64415.0,64414.0,0.00232842]
[1727231321757,0.092,64415.0,64414.0,0.00232842]
[1727231322953,0.002,64415.0,64414.0,0.00232842]
[1727231325254,0.002,64415.0,64412.0,0.077621]
[1727231325558,0.092,64415.0,64412.0,0.077621]
[1727231325945,0.3608,64413.0,64412.0,0.077621]
[1727231326155,0.30643761,64413.0,64412.0,0.077621]
[1727231326342,0.077619,64414.0,64412.0,0.077621]
[1727231327259,0.001,64413.0,64412.0,0.077621]
[1727231328347,0.002,64413.0,64412.0,0.077621]
[1727231328654,0.001,64413.0,64412.0,0.077621]
[1727231329259,0.002,64413.0,64412.0,0.077621]
[1727231341855,0.3608,64431.0,64412.0,1.06576]
[1727231342055,0.077604,64426.0,64421.0,0.09]
[1727231342371,0.077604,64426.0,64425.0,0.077605]
[1727231344465,0.078604,64426.0,64425.0,0.077605]
[1727231345456,0.079604,64426.0,64425.0,0.078605]
[1727231346263,0.002,64426.0,64425.0,0.078605]
[1727231346464,0.002,64426.0,64425.0,0.168605]
[1727231346969,0.002,64426.0,64425.0,0.26970959]
[1727231348965,0.002,64426.0,64425.0,0.34715292]
[1727231349164,0.002,64426.0,64425.0,0.26970959]
[1727231349364,0.002,64426.0,64425.0,0.34714941]
[1727231349670,0.002,64426.0,64425.0,0.26963354]
[1727231350872,0.002,64426.0,64425.0,0.3625244]
[1727231352877,0.002,64426.0,64425.0,0.26963354]
[1727231353077,0.002,64426.0,64425.0,0.3625244]
[1727231353271,0.002,64426.0,64425.0,0.26963354]
[1727231353467,0.002,64426.0,64425.0,0.3625244]
[1727231354160,0.002,64426.0,64425.0,0.26963354]
[1727231356176,0.002,64426.0,64425.0,0.17963354]
[1727231357774,0.11468093,64428.0,64427.0,0.077603]
[1727231357975,0.19228293,64428.0,64427.0,0.077603]
[1727231358168,0.49158287,64428.0,64427.0,0.077603]
[1727231358471,0.56847864,64428.0,64427.0,0.077603]
[1727231359173,0.56947864,64428.0,64427.0,0.077603]
[1727231359371,0.57047864,64428.0,64427.0,0.077603]
[1727231361083,0.077605,64425.0,64424.0,0.077606]
[1727231361376,0.077605,64425.0,64418.0,0.0036]
[1727231361377,0.07761,64421.0,64420.0,0.077611]
[1727231361680,0.09,64421.0,64417.0,0.077615]
[1727231361877,0.06149837,64420.0,64417.0,0.077615]
[1727231362083,0.06149837,64420.0,64418.0,0.23266102]
[1727231363176,0.13911137,64419.0,64418.0,0.23266102]
[1727231363677,0.06149837,64419.0,64418.0,0.31027502]
[1727231364686,0.06249837,64419.0,64418.0,0.31127502]
[1727231364877,0.077609,64422.0,64419.0,0.077612]
[1727231365185,0.07761,64421.0,64420.0,0.10105566]
[1727231366285,0.07761,64421.0,64420.0,0.19398418]